[Event "EYCC O18-ch 2024"]
[Site "Prague"]
[Date "2024.08.29"]
[Round "7.9"]
[White "Borrmann, Laurenz"]
[Black "Taranowicz, Michal"]
[Result "1-0"]
[ECO "C17"]
[WhiteElo "2427"]
[BlackElo "2164"]
[Annotator "RC"]
[PlyCount "83"]
[EventDate "2024.08.19"]
[EventType "swiss"]
[EventCountry "CZE"]
[SourceTitle "playchess.com"]
[Source "ChessBase"]
[SourceQuality "1"]
[TimeControl "5400+30"]

1. e4 {[%emt 0:00:05]} e6 {[%emt 0:04:26]} 2. d4 {[%emt 0:00:08]} d5 {[%emt 0:00:06]} 3. Nc3 {[%emt 0:00:07]} Bb4 {[%emt 0:00:09]} 4. e5 {[%emt 0:00:09]} c5 {[%emt 0:00:04]} 5. Bd2 {[%emt 0:00:26]} Ne7 {[%emt 0:02:40]} 6. a3 {[%emt 0:00:08]} cxd4 {[%emt 0:01:55]} 7. axb4 {[%emt 0:03:53]} dxc3 {[%emt 0:00:10]} 8. Bxc3 {[%emt 0:00:16]} O-O {[%emt 0:03:45]} 9. h4 {[%emt 0:04:34]} Nd7 {[%emt 0:04:31]} 10. Nf3 {[%emt 0:01:25]} f6 {[%emt 0:16:12]} 11. exf6 {[%emt 0:22:24]} gxf6 {[%emt 0:02:38]} 12. Nd4 {[%emt 0:03:37]} Ne5 {[%emt 0:10:30]} 13. f4 {[%emt 0:08:15]} N5c6 {[%emt 0:00:09]} 14. Qg4+ {[%emt 0:04:44]} Kh8 {[%emt 0:01:43]} 15. Nxe6 {[%emt 0:01:32]} Bxe6 {[%emt 0:02:07]} 16. Qxe6 {[%emt 0:00:07]} d4 {[%emt 0:06:13]} 17. O-O-O {[%emt 0:01:31]} Qc7 {[%emt 0:00:45]} 18. Bxd4 {[%emt 0:01:38]} Qxf4+ {[%emt 0:00:06]} 19. Qe3 {[%emt 0:01:30]} Qxe3+ {[%emt 0:11:37]} 20. Bxe3 {[%emt 0:02:11]} Ne5 {[%emt 0:00:39]} 21. Bc5 {[%emt 0:02:05]} Rf7 {[%emt 0:01:48]} 22. Rh3 {[%emt 0:04:09]} a6 {[%emt 0:03:54]} 23. Rd6 {[%emt 0:03:20]} N7c6 {[%emt 0:02:38]} 24. Re3 {[%emt 0:03:34]} Rg8 {[%emt 0:01:02]} 25. Re4 {[%emt 0:00:48]} Rg3 {[%emt 0:02:56]} 26. b3 {[%emt 0:02:21]} Kg7 {[%emt 0:00:21]} 27. Bf2 {[%emt 0:02:25]} Rg6 {[%emt 0:00:48]} 28. Rd5 {[%emt 0:03:00]} Rc7 {[%emt 0:02:00]} 29. Kb2 {[%emt 0:00:46]} Kf7 {[%emt 0:03:21]} 30. g3 {[%emt 0:03:24]} Ne7 {[%emt 0:01:03]} 31. Rc5 {[%emt 0:03:57]} Rd7 {[%emt 0:01:45]} 32. b5 {[%emt 0:00:47]} axb5 {[%emt 0:01:06]} 33. Rxb5 {[%emt 0:00:46]} Nf5 {[%emt 0:01:39]} 34. Reb4 {[%emt 0:02:25]} Nd6 {[%emt 0:01:21]} 35. Rd5 {[%emt 0:02:54]} Ke6 {[%emt 0:00:44]} 36. Rbd4 {[%emt 0:03:58]} f5 {[%emt 0:02:46]} 37. Be3 {[%emt 0:02:17]} Nc6 {[%emt 0:01:57]} 38. Rd1 {[%emt 0:01:35]} Rgg7 {[%emt 0:01:07]} 39. Bh6 {[%emt 0:01:34]} Rge7 {[%emt 0:01:50]} 40. Bf8 {[%emt 0:00:42]} Nb4 {[%emt 0:02:32]} 41. Rxd6+ {[%emt 0:00:47]} Rxd6 {[%emt 0:00:19]} 42. Re1+ {[%emt 0:00:09]} 1-0

[Event "EYCC O18-ch 2024"]
[Site "Prague"]
[Date "2024.08.29"]
[Round "7.10"]
[White "Farokhi, Keyvan"]
[Black "Klimkowski, Jan"]
[Result "1-0"]
[ECO "C50"]
[WhiteElo "2307"]
[BlackElo "2508"]
[Annotator "TA"]
[PlyCount "89"]
[EventDate "2024.08.19"]
[EventType "swiss"]
[EventCountry "CZE"]
[SourceTitle "playchess.com"]
[Source "ChessBase"]
[SourceQuality "1"]
[TimeControl "5400+30"]

{[%evp 17,89,38,32,0,0,0,0,10,6,12,24,-1,-3,-19,-24,-25,-23,-37,-35,-29,-42,-19,-41,-43,-46,-41,-45,-39,-7,0,0,14,29,33,53,-7,-7,-7,0,-9,-12,-11,31,29,59,66,76,0,0,-16,56,56,48,56,52,52,368,160,449,127,206,198,232,91,100,0,201,188,197,189,292,292,292,292]} 1. e4 {[%emt 0:00:05]} e5 {[%emt 0:00:10]} 2. Nf3 {[%emt 0:00:07]} Nc6 {[%emt 0:00:07]} 3. Bc4 {[%emt 0:00:11]} Nf6 {[%emt 0:00:26]} 4. d3 {[%emt 0:00:06]} Bc5 {[%emt 0:00:12]} 5. c3 {[%emt 0:00:19]} O-O {[%emt 0:00:38]} 6. O-O {[%emt 0:00:11]} d5 {[%emt 0:00:57]} 7. exd5 {[%emt 0:00:08]} Nxd5 {[%emt 0:00:04]} 8. Re1 {[%emt 0:01:21]} Bg4 {[%emt 0:01:04]} 9. h3 {[%emt 0:03:03] C54: Giuoco Piano: 4 c3 Nf6, main lines with 5 d4 and 5 d3.} Bh5 {[%emt 0:00:28]} 10. a4 {[%emt 0:02:17]} a5 {[%emt 0:11:18]} 11. Nbd2 {[%emt 0:02:05]} Nb6 {[%emt 0:01:49]} 12. Bb5 {[%emt 0:05:50]} Bd6 {[%emt 0:01:40]} 13. Ne4 {[%emt 0:08:32]} Na7 {[%emt 0:08:03]} 14. Ng3 {[%emt 0:07:55]} Bg6 $1 {[%emt 0:01:07]} 15. d4 {[%emt 0:09:36]} (15. Nxe5 $2 Bxe5 16. Rxe5 c6 $17) 15... exd4 $146 {[%emt 0:01:50]} ({Predecessor:} 15... Nxb5 16. axb5 exd4 17. Nxd4 Qf6 18. Qg4 h6 19. h4 Rfe8 20. Bxh6 gxh6 21. h5 Qf4 22. Rxe8+ Rxe8 23. Qxf4 Bxf4 24. hxg6 fxg6 {½-½ Gluma,C (2091)-Stelmaszyk,N (2380) Dortmund Sparkassen op-A 51st 2024 (5)}) 16. Nxd4 {[%emt 0:01:21]} Bxg3 {[%emt 0:14:54]} 17. fxg3 {[%emt 0:01:19]} c5 {[%emt 0:00:55]} 18. Nf3 {[%emt 0:02:32]} Nxb5 {[%emt 0:10:14]} 19. axb5 {[%emt 0:00:31]} Qxd1 {[%emt 0:10:46]} 20. Rxd1 {[%emt 0:00:09]} f6 {[%emt 0:08:04]} 21. Be3 {[%emt 0:05:40]} Rfc8 {[%emt 0:01:04]} 22. b4 {[%emt 0:04:50]} Nc4 {[%emt 0:04:42]} (22... cxb4 $5 23. Bxb6 b3 $16) 23. Bxc5 {[%emt 0:00:49]} a4 {[%emt 0:00:45]} 24. b6 {[%emt 0:13:05]} a3 {[%emt 0:01:58]} 25. Rd7 {[%emt 0:02:07]} Rcb8 {[%emt 0:07:31]} 26. Nd2 {[%emt 0:13:42]} (26. g4 $14) 26... Nxd2 $11 {[%emt 0:03:46]} 27. Rxd2 {[%emt 0:00:01]} Bf7 {[%emt 0:00:08]} 28. Rd4 {[%emt 0:01:38]} a2 {[%emt 0:03:32]} 29. c4 $1 {[%emt 0:00:20]} Bg6 {[%emt 0:01:05]} 30. Bd6 {[%emt 0:01:24]} Rc8 {[%emt 0:01:42]} 31. c5 {[%emt 0:00:56]} Ra4 {[%emt 0:01:04] [#]} 32. Bc7 {[%emt 0:05:24]} (32. Rd2 $1 $16 {[%cal Rd2a2]} Rxb4 33. Rdxa2 (33. Raxa2 h5 $16)) 32... Be8 $11 {[%emt 0:00:08]} 33. Rd6 {[%emt 0:00:17]} Bg6 {[%emt 0:02:09]} (33... Rca8 $11 34. Rd2 Rxb4 (34... Bc6 35. Rb2 $11) 35. Raxa2 (35. Rdxa2 Rb1+ 36. Rxb1 Rxa2 $11) 35... Rxa2 36. Rxa2 h5) 34. c6 {[%emt 0:06:37]} Be4 {[%emt 0:00:04]} 35. b5 {[%emt 0:00:05]} Rca8 {[%emt 0:00:16]} 36. Rd2 {[%emt 0:01:13]} R4a5 $2 {[%emt 0:01:58][%mdl 8192]} ({Black should try} 36... Rb4 $1 $14 37. Rdxa2 (37. Raxa2 Rxa2 38. Rxa2 Rxb5 $16) 37... Rxa2 38. Rxa2 Rxb5) 37. Rb2 (37. Rd4 $18 {is the precise move to win.} Rxb5 38. Rxe4 Rb1+ 39. Re1 Rxe1+ (39... bxc6 $2 40. Rexb1 axb1=Q+ 41. Rxb1 $18) 40. Rxe1) 37... h5 $2 {[%emt 0:00:44]} (37... Bd5 $16 38. Rd2 Be4) 38. Bd6 $2 {[%emt 0:02:43]} (38. Rb4 $18 Bd5 39. Rd4 Rxb5 40. Rxd5 Rb1+ 41. Rd1 Rxd1+ (41... bxc6 $2 42. Rdxb1 axb1=Q+ 43. Rxb1 $18) 42. Rxd1) 38... Kh7 {[%emt 0:00:52]} (38... Bd5 $16 {was necessary.} 39. Kh1 (39. c7 Kf7 $16) 39... Rd8) 39. Kf2 $18 {[%emt 0:00:38]} Kg6 {[%emt 0:00:35]} 40. Ke3 {[%emt 0:00:09]} (40. Bf4 $18 {has better winning chances.}) 40... Re8 $16 {[%emt 0:00:27] [#]} 41. Kf2 {[%emt 0:00:51]} (41. Raxa2 Bxc6+ (41... Rxa2 42. Rxa2 Bxc6+ 43. Kf2 $17) 42. Kd4 Rxb5 43. Rxb5 Bxb5 $14) (41. Kd4 $1 $16 Ra4+ 42. Kc5) 41... Rea8 $1 $18 {[%emt 0:00:32]} 42. g4 {[%emt 0:00:24]} hxg4 {[%emt 0:00:03]} 43. hxg4 {[%emt 0:00:02]} Kg5 {[%emt 0:01:25]} (43... Bd5 $142 44. Rd2 (44. c7 Be6 $14) 44... Rxb5 45. Rxd5 Rb2+ (45... Rxd5 $2 {loses.} 46. cxb7 Re8 47. b8=Q $18) 46. Ke3 bxc6) 44. Rb4 $18 {[%emt 0:00:16]} Bd5 {[%emt 0:00:26]} 45. Rd4 {[%emt 0:00:28]} 1-0

[Event "EYCC O18-ch 2024"]
[Site "Prague"]
[Date "2024.08.29"]
[Round "7.10"]
[White "Trushko, Andrii"]
[Black "Pyrih, Roman"]
[Result "0-1"]
[ECO "D00"]
[WhiteElo "2154"]
[BlackElo "2422"]
[Annotator "RC"]
[PlyCount "208"]
[EventDate "2024.08.19"]
[EventType "swiss"]
[EventCountry "CZE"]
[SourceTitle "playchess.com"]
[Source "ChessBase"]
[SourceQuality "1"]
[TimeControl "5400+30"]

1. d4 {[%emt 0:00:02]} d5 {[%emt 0:00:05]} 2. Bf4 {[%emt 0:00:07]} c5 {[%emt 0:00:04]} 3. e3 {[%emt 0:00:05]} Nc6 {[%emt 0:00:04]} 4. c3 {[%emt 0:00:09]} Qb6 {[%emt 0:00:04]} 5. Qc2 {[%emt 0:00:08]} Nf6 {[%emt 0:03:32]} 6. Nd2 {[%emt 0:00:06]} g6 {[%emt 0:00:59]} 7. Qb3 {[%emt 0:02:54]} c4 {[%emt 0:00:57]} 8. Qxb6 {[%emt 0:01:01]} axb6 {[%emt 0:00:03]} 9. a3 {[%emt 0:00:09]} b5 {[%emt 0:00:12]} 10. Rc1 {[%emt 0:00:05]} Nd7 {[%emt 0:00:28]} 11. Bc7 {[%emt 0:02:06]} Bg7 {[%emt 0:01:39]} 12. Ngf3 {[%emt 0:01:04]} Ra6 {[%emt 0:00:48]} 13. h4 {[%emt 0:14:00]} h6 {[%emt 0:01:57]} 14. Be2 {[%emt 0:02:46]} Nb6 {[%emt 0:00:13]} 15. Bxb6 {[%emt 0:00:02]} Rxb6 {[%emt 0:00:06]} 16. e4 {[%emt 0:00:51]} e6 {[%emt 0:00:10]} 17. Bd1 {[%emt 0:02:16]} Ra6 {[%emt 0:00:23]} 18. Bc2 {[%emt 0:00:21]} O-O {[%emt 0:00:10]} 19. O-O {[%emt 0:00:35]} dxe4 {[%emt 0:01:19]} 20. Nxe4 {[%emt 0:00:16]} Rd8 {[%emt 0:00:09]} 21. Rfe1 {[%emt 0:02:02]} b6 {[%emt 0:00:36]} 22. Ng3 {[%emt 0:02:33]} Ra7 {[%emt 0:00:20]} 23. Be4 {[%emt 0:01:07]} Ne7 {[%emt 0:00:03]} 24. Ne5 {[%emt 0:00:35]} Rc7 {[%emt 0:01:22]} 25. f4 {[%emt 0:00:59]} h5 {[%emt 0:01:27]} 26. Nf1 {[%emt 0:01:12]} Bh6 {[%emt 0:01:34]} 27. g3 {[%emt 0:00:16]} Kg7 {[%emt 0:00:02]} 28. Re2 {[%emt 0:01:12]} f6 {[%emt 0:00:13]} 29. Nf3 {[%emt 0:00:06]} Kf7 {[%emt 0:01:55]} 30. Rce1 {[%emt 0:00:24]} Rd6 {[%emt 0:01:14]} 31. Ne3 {[%emt 0:00:11]} Rd8 {[%emt 0:03:21]} 32. Nc2 {[%emt 0:00:08]} Nf5 {[%emt 0:00:48]} 33. Bxf5 {[%emt 0:00:59]} gxf5 {[%emt 0:00:02]} 34. Nb4 {[%emt 0:00:22]} Bf8 {[%emt 0:00:04]} 35. Kg2 {[%emt 0:01:06]} Bxb4 {[%emt 0:01:15]} 36. axb4 {[%emt 0:00:16]} Ra7 {[%emt 0:00:04]} 37. Kf2 {[%emt 0:00:18]} Rd6 {[%emt 0:00:28]} 38. Nd2 {[%emt 0:02:13]} Bb7 {[%emt 0:00:02]} 39. Nb1 {[%emt 0:00:06]} Be4 {[%emt 0:00:03]} 40. Na3 {[%emt 0:00:04]} Rd5 {[%emt 0:00:02]} 41. Ra1 {[%emt 0:02:41]} Ke7 {[%emt 0:05:32]} 42. Ree1 {[%emt 0:00:14]} Ra4 {[%emt 0:00:19]} 43. Re2 {[%emt 0:01:11]} Kd7 {[%emt 0:00:23]} 44. Rae1 {[%emt 0:01:03]} Kc6 {[%emt 0:00:55]} 45. Re3 {[%emt 0:00:57]} Rd7 {[%emt 0:00:06]} 46. R3e2 {[%emt 0:00:43]} Rg7 {[%emt 0:00:14]} 47. Re3 {[%emt 0:01:36]} Ra8 {[%emt 0:01:28]} 48. Ra1 {[%emt 0:00:17]} Rag8 {[%emt 0:04:38]} 49. Rae1 {[%emt 0:01:45]} Rg4 {[%emt 0:02:05]} 50. Nb1 {[%emt 0:02:27]} e5 {[%emt 0:00:01]} 51. dxe5 {[%emt 0:00:44]} fxe5 {[%emt 0:00:01]} 52. fxe5 {[%emt 0:00:54]} Bd5 {[%emt 0:01:14]} 53. Rf1 {[%emt 0:00:38]} f4 {[%emt 0:09:35]} 54. gxf4 {[%emt 0:00:12]} Rxf4+ {[%emt 0:00:36]} 55. Ke1 {[%emt 0:00:12]} Rxh4 {[%emt 0:00:04]} 56. Nd2 {[%emt 0:04:33]} Kd7 {[%emt 0:04:17]} 57. e6+ {[%emt 0:10:16]} Bxe6 {[%emt 0:00:09]} 58. Nf3 {[%emt 0:00:01]} Rh3 {[%emt 0:00:43]} 59. Re5 {[%emt 0:00:02]} Rgg3 {[%emt 0:02:11]} 60. Nd4 {[%emt 0:02:41]} Re3+ {[%emt 0:00:02]} 61. Rxe3 {[%emt 0:00:01]} Rxe3+ {[%emt 0:00:02]} 62. Kf2 {[%emt 0:00:36]} Re5 {[%emt 0:00:05]} 63. Ra1 {[%emt 0:00:07]} Bd5 {[%emt 0:20:39]} 64. Ra7+ {[%emt 0:00:41]} Kc8 {[%emt 0:00:09]} 65. Rh7 {[%emt 0:00:53]} Be4 {[%emt 0:10:04]} 66. Rh6 {[%emt 0:00:10]} Kb7 {[%emt 0:00:04]} 67. Kg3 {[%emt 0:00:20]} Bd3 {[%emt 0:00:03]} 68. Kf4 {[%emt 0:00:54]} Re4+ {[%emt 0:01:19]} 69. Kg5 {[%emt 0:00:07]} Rg4+ {[%emt 0:00:25]} 70. Kf6 {[%emt 0:01:18]} h4 {[%emt 0:00:08]} 71. Ke5 {[%emt 0:04:57]} Ka6 {[%emt 0:02:59]} 72. Ne6 {[%emt 0:04:34]} Kb7 {[%emt 0:06:05]} 73. Rh8 {[%emt 0:03:06]} Bb1 {[%emt 0:01:14]} 74. Kd6 {[%emt 0:01:31]} Rg6 {[%emt 0:05:41]} 75. Kd5 {[%emt 0:01:00]} Rg4 {[%emt 0:01:00]} 76. Nd4 {[%emt 0:02:10]} Bd3 {[%emt 0:00:33]} 77. Kd6 {[%emt 0:03:10]} Rg6+ {[%emt 0:00:17]} 78. Ke7 {[%emt 0:01:32]} Rg7+ {[%emt 0:00:19]} 79. Kf6 {[%emt 0:00:49]} Rh7 {[%emt 0:00:00]} 80. Rxh7+ {[%emt 0:00:09]} Bxh7 {[%emt 0:00:02]} 81. Ke5 {[%emt 0:00:28]} h3 {[%emt 0:00:19]} 82. Nf3 {[%emt 0:00:05]} Bg6 {[%emt 0:00:59]} 83. Kf4 {[%emt 0:00:04]} Be8 {[%emt 0:00:01]} 84. Kg3 {[%emt 0:00:09]} Bd7 {[%emt 0:00:00]} 85. Nd4 {[%emt 0:05:46]} Kc7 {[%emt 0:00:37]} 86. b3 {[%emt 0:00:03]} Kd6 {[%emt 0:00:57]} 87. bxc4 {[%emt 0:00:07]} bxc4 {[%emt 0:00:01]} 88. Nf3 {[%emt 0:00:21]} Kd5 {[%emt 0:00:42]} 89. Kf4 {[%emt 0:00:07]} Bc8 {[%emt 0:00:26]} 90. Nh2 {[%emt 0:01:13]} Bb7 {[%emt 0:00:36]} 91. Nf1 {[%emt 0:00:16]} Kd6 {[%emt 0:00:30]} 92. Kg3 {[%emt 0:00:05]} Bc8 {[%emt 0:00:35]} 93. Kf4 {[%emt 0:00:36]} Bd7 {[%emt 0:00:09]} 94. Nh2 {[%emt 0:00:06]} Bc6 {[%emt 0:00:04]} 95. Kg3 {[%emt 0:00:12]} Ke5 {[%emt 0:01:07]} 96. Kxh3 {[%emt 0:00:12]} Ke4 {[%emt 0:00:01]} 97. Kg3 {[%emt 0:00:14]} Kd3 {[%emt 0:00:03]} 98. Kf2 {[%emt 0:00:04]} Kxc3 {[%emt 0:00:08]} 99. Ng4 {[%emt 0:00:02]} Kxb4 {[%emt 0:00:22]} 100. Ne5 {[%emt 0:00:11]} Kc5 {[%emt 0:00:09]} 101. Ke3 {[%emt 0:00:10]} b5 {[%emt 0:00:05]} 102. Kd2 {[%emt 0:00:15]} b4 {[%emt 0:00:07]} 103. Ng4 {[%emt 0:00:11]} Kd4 {[%emt 0:00:07]} 104. Ne3 {[%emt 0:00:13]} Be4 {[%emt 0:00:24]} 0-1

[Event "EYCC O18-ch 2024"]
[Site "Prague"]
[Date "2024.08.29"]
[Round "7.11"]
[White "Hrbek, Stepan"]
[Black "Eilenberg, Jonas"]
[Result "1-0"]
[ECO "D02"]
[WhiteElo "2414"]
[BlackElo "2285"]
[Annotator "RC"]
[PlyCount "167"]
[EventDate "2024.08.19"]
[EventType "swiss"]
[EventCountry "CZE"]
[SourceTitle "playchess.com"]
[Source "ChessBase"]
[SourceQuality "1"]
[TimeControl "5400+30"]

1. d4 {[%emt 0:00:05]} d5 {[%emt 0:00:16]} 2. Nf3 {[%emt 0:00:24]} Nf6 {[%emt 0:00:09]} 3. Bf4 {[%emt 0:00:18]} c5 {[%emt 0:00:14]} 4. e3 {[%emt 0:00:10]} e6 {[%emt 0:00:07]} 5. Nbd2 {[%emt 0:00:56]} Bd6 {[%emt 0:00:20]} 6. dxc5 {[%emt 0:01:07]} Bxf4 {[%emt 0:01:16]} 7. exf4 {[%emt 0:00:20]} Qc7 {[%emt 0:00:07]} 8. g3 {[%emt 0:01:00]} Qxc5 {[%emt 0:01:21]} 9. Bd3 {[%emt 0:00:39]} b6 {[%emt 0:04:48]} 10. Qe2 {[%emt 0:01:55]} Nbd7 {[%emt 0:01:38]} 11. Nb3 {[%emt 0:07:25]} Qe7 {[%emt 0:04:17]} 12. Nbd4 {[%emt 0:03:03]} Nc5 {[%emt 0:03:44]} 13. O-O-O {[%emt 0:05:24]} Nxd3+ {[%emt 0:08:36]} 14. Qxd3 {[%emt 0:15:03]} Ne4 {[%emt 0:01:59]} 15. Qe3 {[%emt 0:00:48]} O-O {[%emt 0:05:22]} 16. h4 {[%emt 0:10:25]} f6 {[%emt 0:08:48]} 17. Rhe1 {[%emt 0:07:49]} Bb7 {[%emt 0:05:15]} 18. Nd2 {[%emt 0:02:45]} Rfe8 {[%emt 0:11:39]} 19. g4 {[%emt 0:08:52]} Rac8 {[%emt 0:06:29]} 20. Nxe4 {[%emt 0:08:27]} dxe4 {[%emt 0:00:02]} 21. Rd2 {[%emt 0:02:07]} Bd5 {[%emt 0:07:37]} 22. Nb5 {[%emt 0:01:33]} Qb4 {[%emt 0:02:48]} 23. Nc3 {[%emt 0:02:10]} Qa5 {[%emt 0:01:48]} 24. a3 {[%emt 0:03:46]} Rc4 {[%emt 0:04:33]} 25. Red1 {[%emt 0:01:58]} Rec8 {[%emt 0:00:20]} 26. Nxd5 {[%emt 0:00:15]} exd5 {[%emt 0:00:06]} 27. Qb3 {[%emt 0:05:13]} Qc5 {[%emt 0:05:04]} 28. Rxd5 {[%emt 0:00:38]} Rxc2+ {[%emt 0:00:10]} 29. Kb1 {[%emt 0:00:01]} Rc1+ {[%emt 0:00:44]} 30. Ka2 {[%emt 0:03:37]} Qc4 {[%emt 0:00:05]} 31. Qxc4 {[%emt 0:01:04]} R1xc4 {[%emt 0:01:44]} 32. Rd8+ {[%emt 0:00:05]} Rxd8 {[%emt 0:01:27]} 33. Rxd8+ {[%emt 0:00:01]} Kf7 {[%emt 0:00:07]} 34. Rd7+ {[%emt 0:01:45]} Ke6 {[%emt 0:01:32]} 35. Rxg7 {[%emt 0:03:23]} Rc2 {[%emt 0:00:06]} 36. Rxh7 {[%emt 0:00:20]} Rxf2 {[%emt 0:00:05]} 37. f5+ Ke5 {[%emt 0:03:47]} 38. Re7+ {[%emt 0:04:00]} Kf4 {[%emt 0:00:58]} 39. g5 {[%emt 0:00:01]} fxg5 {[%emt 0:02:39]} 40. hxg5 {[%emt 0:00:01]} Kxg5 {[%emt 0:00:12]} 41. Rxe4 {[%emt 0:00:11]} Rxf5 {[%emt 0:00:14]} 42. Re7 {[%emt 0:00:49]} a5 {[%emt 0:01:17]} 43. Re6 {[%emt 0:01:13]} b5 {[%emt 0:00:44]} 44. a4 {[%emt 0:00:05]} bxa4 {[%emt 0:01:21]} 45. Ka3 {[%emt 0:01:01]} Rb5 {[%emt 0:00:45]} 46. Re2 {[%emt 0:00:09]} Rb4 {[%emt 0:00:13]} 47. Re5+ {[%emt 0:01:02]} Kf6 {[%emt 0:00:06]} 48. Rxa5 {[%emt 0:00:04]} Rb3+ {[%emt 0:00:04]} 49. Ka2 {[%emt 0:00:04]} Rb4 {[%emt 0:00:04]} 50. Rd5 {[%emt 0:00:29]} Ke6 {[%emt 0:01:37]} 51. Rd3 {[%emt 0:00:01]} Rg4 {[%emt 0:01:34]} 52. Ka3 {[%emt 0:00:05]} Rh4 {[%emt 0:00:05]} 53. Ka2 {[%emt 0:00:34]} Rg4 {[%emt 0:00:21]} 54. Ka3 {[%emt 0:00:12]} Rh4 {[%emt 0:00:05]} 55. Rd8 {[%emt 0:00:05]} Ke7 {[%emt 0:00:06]} 56. Rb8 {[%emt 0:01:36]} Kd7 {[%emt 0:00:09]} 57. Rb4 {[%emt 0:00:06]} Rh8 {[%emt 0:00:26]} 58. Rc4 {[%emt 0:01:06]} Rh2 {[%emt 0:00:11]} 59. Rb4 {[%emt 0:01:18]} Kc7 {[%emt 0:00:21]} 60. Kxa4 {[%emt 0:00:05]} Rh5 {[%emt 0:00:39]} 61. Rb5 {[%emt 0:00:28]} Rh4+ {[%emt 0:00:11]} 62. Ka5 {[%emt 0:00:19]} Rh2 {[%emt 0:00:31]} 63. Ka6 {[%emt 0:00:37]} Rh1 {[%emt 0:01:19]} 64. b4 {[%emt 0:00:57]} Ra1+ {[%emt 0:00:36]} 65. Ra5 {[%emt 0:00:01]} Rb1 {[%emt 0:00:19]} 66. Rb5 {[%emt 0:00:39]} Ra1+ {[%emt 0:00:04]} 67. Ra5 {[%emt 0:00:00]} Rb1 {[%emt 0:00:06]} 68. Rc5+ {[%emt 0:01:16]} Kb8 {[%emt 0:00:13]} 69. Rb5+ {[%emt 0:00:08]} Kc7 {[%emt 0:00:47]} 70. Rb7+ {[%emt 0:00:00]} Kc8 {[%emt 0:00:06]} 71. b5 {[%emt 0:00:00]} Ra1+ {[%emt 0:07:46]} 72. Kb6 {[%emt 0:00:00]} Rb1 {[%emt 0:00:17]} 73. Rh7 {[%emt 0:00:00]} Rb2 {[%emt 0:00:06]} 74. Rh8+ {[%emt 0:00:05]} Kd7 {[%emt 0:00:00]} 75. Rb8 {[%emt 0:00:12]} Rh2 {[%emt 0:02:12]} 76. Ka7 {[%emt 0:01:03]} Kd6 {[%emt 0:00:42]} 77. b6 {[%emt 0:00:36]} Ra2+ {[%emt 0:00:28]} 78. Kb7 {[%emt 0:00:06]} Rh2 {[%emt 0:00:02]} 79. Rc8 {[%emt 0:00:22]} Rb2 {[%emt 0:00:28]} 80. Ka7 {[%emt 0:00:26]} Kd7 {[%emt 0:00:27]} 81. b7 {[%emt 0:00:13]} Ra2+ {[%emt 0:00:09]} 82. Kb8 {[%emt 0:00:11]} Rh2 {[%emt 0:00:12]} 83. Rc4 {[%emt 0:01:04]} Rg2 {[%emt 0:00:17]} 84. Ra4 {[%emt 0:00:35]} 1-0

[Event "EYCC O18-ch 2024"]
[Site "Prague"]
[Date "2024.08.29"]
[Round "7.11"]
[White "Palczert, Matyas"]
[Black "Lang, Simon"]
[Result "1-0"]
[ECO "C11"]
[WhiteElo "2341"]
[BlackElo "2138"]
[Annotator "RC"]
[PlyCount "61"]
[EventDate "2024.08.19"]
[EventType "swiss"]
[EventCountry "CZE"]
[SourceTitle "playchess.com"]
[Source "ChessBase"]
[SourceQuality "1"]
[TimeControl "5400+30"]

1. e4 {[%emt 0:00:01]} e6 {[%emt 0:00:36]} 2. d4 {[%emt 0:00:07]} d5 {[%emt 0:00:05]} 3. Nc3 {[%emt 0:00:44]} Nf6 {[%emt 0:00:33]} 4. e5 {[%emt 0:00:14]} Nfd7 {[%emt 0:00:06]} 5. f4 {[%emt 0:00:07]} c5 {[%emt 0:00:21]} 6. Nf3 {[%emt 0:00:12]} Nc6 {[%emt 0:00:20]} 7. Be3 {[%emt 0:01:15]} Be7 {[%emt 0:01:12]} 8. a3 {[%emt 0:02:33]} O-O {[%emt 0:05:22]} 9. dxc5 {[%emt 0:08:46]} Nxc5 {[%emt 0:00:43]} 10. b4 {[%emt 0:08:43]} Nd7 {[%emt 0:05:25]} 11. Ne2 {[%emt 0:10:05]} Nb6 {[%emt 0:04:24]} 12. Ned4 {[%emt 0:01:40]} Bd7 {[%emt 0:01:37]} 13. Bd3 {[%emt 0:01:46]} Nc4 {[%emt 0:02:49]} 14. Bxc4 {[%emt 0:00:56]} dxc4 {[%emt 0:00:06]} 15. c3 {[%emt 0:01:28]} a6 {[%emt 0:10:16]} 16. O-O {[%emt 0:00:47]} Qc7 {[%emt 0:02:21]} 17. a4 {[%emt 0:05:37]} b6 {[%emt 0:24:16]} 18. Qe2 {[%emt 0:01:13]} Nxd4 {[%emt 0:03:21]} 19. Nxd4 {[%emt 0:01:34]} Bc8 {[%emt 0:00:12]} 20. Qf2 {[%emt 0:05:12]} Bb7 {[%emt 0:02:52]} 21. Qg3 {[%emt 0:02:12]} Bd5 {[%emt 0:09:28]} 22. f5 {[%emt 0:03:45]} Kh8 {[%emt 0:00:08]} 23. Rae1 {[%emt 0:05:01]} Rae8 {[%emt 0:03:11]} 24. Bf4 {[%emt 0:07:24]} Qd7 {[%emt 0:01:31]} 25. Bg5 {[%emt 0:03:02]} Bxg5 {[%emt 0:13:13]} 26. Qxg5 {[%emt 0:00:09]} f6 {[%emt 0:00:04]} 27. fxe6 {[%emt 0:03:30]} Rxe6 {[%emt 0:00:55]} 28. Nxe6 {[%emt 0:01:27]} Bxe6 {[%emt 0:00:52]} 29. exf6 {[%emt 0:00:49]} gxf6 {[%emt 0:01:48]} 30. Rxf6 {[%emt 0:02:04]} Rg8 {[%emt 0:00:06]} 31. Qe5 {[%emt 0:01:00]} 1-0